bitfinex/quotes_BTCUSD_20240730
["timestamp","ask_amount","ask_price","bid_price","bid_amount"]
[1722301340292,9e-05,66762.0,66759.0,2.14641091]
[1722301341006,9e-05,66762.0,66759.0,2.12441091]
[1722301341207,9e-05,66762.0,66759.0,2.14641091]
[1722301341408,0.00795,66760.0,66759.0,2.18376985]
[1722301341619,0.00780018,66760.0,66759.0,2.14641091]
[1722301341820,0.00780018,66760.0,66759.0,2.16041091]
[1722301342023,0.01493314,66777.0,66764.0,0.22557]
[1722301342225,0.01493314,66777.0,66776.0,0.614017]
[1722301342410,0.01493314,66777.0,66776.0,1.11919091]
[1722301343438,0.01343493,66777.0,66776.0,1.11919091]
[1722301343747,0.01343493,66777.0,66776.0,1.10919091]
[1722301343950,0.01343493,66777.0,66776.0,1.11919091]
[1722301344155,0.01343493,66777.0,66776.0,0.31436991]
[1722301344320,0.01343493,66777.0,66776.0,0.77958391]
[1722301344498,0.01498913,66777.0,66776.0,1.01919091]
[1722301344698,0.01498913,66777.0,66776.0,1.26279791]
[1722301344914,0.01498913,66777.0,66776.0,1.35879791]
[1722301345114,0.01343493,66777.0,66776.0,1.35879791]
[1722301345294,0.01343493,66777.0,66776.0,1.37179791]
[1722301345730,0.03691959,66777.0,66776.0,1.37179791]
[1722301347254,0.01343493,66777.0,66776.0,1.37179791]
[1722301347463,0.01343493,66777.0,66776.0,1.34386404]
[1722301347809,0.01343493,66777.0,66776.0,1.35786404]
[1722301348014,0.01343493,66777.0,66776.0,1.34386404]
[1722301348214,0.01343493,66777.0,66776.0,1.35786404]
[1722301348412,0.01426493,66777.0,66776.0,1.35786404]
[1722301348684,0.01426493,66777.0,66776.0,1.34386404]
[1722301348874,0.01426493,66777.0,66776.0,1.35786404]
[1722301349076,0.01426493,66777.0,66776.0,1.75887104]
[1722301349280,0.01426493,66777.0,66776.0,1.86364285]
[1722301349489,0.01426493,66777.0,66776.0,1.80697774]
[1722301349688,0.01426493,66777.0,66776.0,1.87764285]
[1722301350341,0.03774803,66777.0,66776.0,1.88571285]
[1722301350546,0.03774803,66777.0,66776.0,1.64610585]
[1722301350703,0.01426493,66777.0,66776.0,1.63210585]
[1722301351304,0.01426493,66777.0,66776.0,1.59344074]
[1722301351649,0.01426493,66777.0,66776.0,1.56333404]
[1722301351858,0.01426493,66777.0,66776.0,1.63210585]
[1722301352081,0.01426493,66777.0,66776.0,1.60199915]
[1722301352282,0.01426493,66777.0,66776.0,1.60744074]
[1722301352485,0.01426493,66777.0,66776.0,1.55333404]
[1722301352690,0.01426493,66777.0,66776.0,1.56333404]
[1722301352915,0.01426493,66777.0,66776.0,1.58333404]
[1722301354005,0.03774808,66777.0,66776.0,1.58333404]
[1722301354385,0.03774808,66777.0,66776.0,1.61344074]
[1722301354783,0.03774808,66777.0,66776.0,1.62744074]
[1722301355072,0.01426493,66777.0,66776.0,1.56933404]
[1722301355222,0.01426493,66777.0,66776.0,1.58333404]
[1722301355549,0.01426493,66777.0,66776.0,1.90571285]
[1722301355787,0.01426493,66777.0,66776.0,1.64610585]
[1722301356165,0.01426493,66777.0,66776.0,1.58333404]
[1722301356369,0.01426493,66777.0,66776.0,1.66610585]
[1722301356572,0.01426493,66777.0,66776.0,1.62744074]
[1722301356762,0.01426493,66777.0,66776.0,1.90571285]
[1722301356960,0.00466645,66777.0,66776.0,1.90571285]
[1722301357258,0.00466645,66777.0,66776.0,1.89171285]
[1722301357459,0.00466645,66777.0,66776.0,1.90571285]
[1722301357761,0.00466645,66777.0,66776.0,1.89171285]
[1722301357922,0.00466645,66777.0,66776.0,1.90571285]
[1722301358120,1e-08,66778.0,66777.0,1.31195481]
[1722301358347,1e-08,66778.0,66777.0,1.60052172]
[1722301358745,1e-08,66778.0,66777.0,1.84012472]
[1722301359227,0.00844,66795.0,66778.0,0.915666]
[1722301359434,0.00844,66795.0,66778.0,1.47307093]
[1722301359566,0.00844,66795.0,66778.0,1.51173604]
[1722301359768,1e-08,66779.0,66778.0,1.51173604]
[1722301359972,1e-08,66780.0,66779.0,1.20178122]
[1722301360175,1e-08,66780.0,66779.0,1.71501026]
[1722301360374,1e-08,66780.0,66779.0,1.68301026]
[1722301360577,1e-08,66780.0,66779.0,1.71501026]
[1722301361127,1e-08,66780.0,66779.0,1.62888504]
[1722301361712,1e-08,66780.0,66779.0,1.67083737]
[1722301362012,1e-08,66780.0,66779.0,1.62888504]
[1722301362530,0.02348199,66780.0,66779.0,1.62888504]
[1722301363136,1e-08,66780.0,66779.0,1.62888504]
[1722301363540,1e-08,66780.0,66779.0,1.64101183]
[1722301364059,1e-08,66780.0,66779.0,1.65501183]
[1722301365729,1e-08,66780.0,66779.0,1.62301183]
[1722301366129,1e-08,66780.0,66779.0,1.61301183]
[1722301366409,0.02348233,66780.0,66779.0,1.62301183]
[1722301367654,1e-08,66780.0,66779.0,1.62301183]
[1722301368109,1e-08,66780.0,66779.0,1.63301183]
[1722301368647,1e-08,66780.0,66779.0,1.69298993]
[1722301368995,1e-08,66780.0,66779.0,1.62301183]
[1722301369374,1e-08,66780.0,66779.0,1.6929924]
[1722301370437,1e-08,66780.0,66779.0,1.7049924]
[1722301370667,1e-08,66780.0,66779.0,1.6829924]
[1722301370867,1e-08,66780.0,66779.0,1.6929924]
[1722301370868,0.0234807,66780.0,66779.0,1.6929924]
[1722301371244,1e-08,66780.0,66779.0,1.65983258]
[1722301371695,1e-08,66780.0,66779.0,1.59001183]
[1722301371897,1e-08,66780.0,66779.0,1.65955218]
[1722301372041,1e-08,66780.0,66779.0,1.66955218]
[1722301373030,1e-08,66780.0,66779.0,1.83095218]
[1722301373419,1e-08,66780.0,66779.0,2.07093598]
[1722301374095,1e-08,66780.0,66779.0,2.10293598]
[1722301374375,0.02348037,66780.0,66779.0,2.08095424]
[1722301374531,0.02348037,66780.0,66779.0,2.07095424]
[1722301374875,0.02348037,66780.0,66779.0,1.83135824]
[1722301375104,0.02348037,66780.0,66779.0,1.73135824]
[1722301375264,0.02348037,66780.0,66779.0,1.97095424]
[1722301375465,0.02348037,66780.0,66779.0,2.00295424]
[1722301375663,1e-08,66780.0,66779.0,2.00295424]
[1722301376066,1e-08,66780.0,66779.0,1.98895424]
[1722301376273,1e-08,66780.0,66779.0,2.00295424]
[1722301376435,1e-08,66780.0,66779.0,1.98895424]
[1722301376883,1e-08,66780.0,66779.0,2.00295424]
[1722301377624,1e-08,66780.0,66779.0,1.98910393]
[1722301377965,1e-08,66780.0,66779.0,1.95710393]
[1722301378687,1e-08,66780.0,66779.0,2.00310393]
[1722301378887,0.02348017,66780.0,66779.0,2.1039637]
[1722301379091,0.02348017,66780.0,66779.0,2.3180637]
[1722301379497,0.02348017,66780.0,66779.0,2.2860637]
[1722301379900,0.02348017,66780.0,66779.0,2.3040637]
[1722301380101,0.02348017,66780.0,66779.0,2.3180637]
[1722301380461,0.02348017,66780.0,66779.0,2.2860637]
[1722301380668,0.02348017,66780.0,66779.0,2.31914102]
[1722301380945,0.02348017,66780.0,66779.0,2.30514102]
[1722301381254,0.02348017,66780.0,66779.0,2.32005402]
[1722301382868,0.02348017,66780.0,66779.0,2.3201727]
[1722301383098,0.02348017,66780.0,66779.0,2.32018899]
[1722301383317,0.02348017,66780.0,66779.0,2.3823805]
[1722301384503,0.02348017,66780.0,66779.0,2.3503805]
[1722301384818,0.02348017,66780.0,66779.0,1.67309299]
[1722301384959,0.02348017,66780.0,66779.0,1.57162978]
[1722301385556,1e-08,66780.0,66779.0,1.57162978]
[1722301385967,1e-08,66780.0,66779.0,1.77572978]
[1722301386225,1e-08,66780.0,66779.0,1.78572978]
[1722301386429,1e-08,66780.0,66779.0,1.79572978]
[1722301386576,1e-08,66780.0,66779.0,1.79772978]
[1722301386779,1e-08,66780.0,66779.0,1.79572978]
[1722301387002,1e-08,66780.0,66779.0,1.96279299]
[1722301387293,1e-08,66780.0,66779.0,1.84932978]
[1722301387494,1e-08,66780.0,66779.0,1.95079299]
[1722301387964,1e-08,66780.0,66779.0,1.88719299]
[1722301388261,1e-08,66780.0,66779.0,1.78572978]
[1722301388883,1e-08,66780.0,66779.0,1.71502483]
[1722301389153,1e-08,66780.0,66779.0,1.78644446]
[1722301389289,0.00137397,66787.0,66786.0,1.088069]
[1722301389496,0.00137397,66787.0,66786.0,1.43005554]
[1722301390305,0.02348081,66787.0,66786.0,1.64415554]
[1722301390504,0.04627954,66792.0,66789.0,0.83846]
[1722301390810,0.04627954,66792.0,66789.0,1.31507267]
[1722301390983,0.00137397,66791.0,66789.0,1.30507267]
[1722301391139,0.00137397,66791.0,66789.0,1.41507267]
[1722301391331,0.00137397,66792.0,66789.0,1.41507267]
[1722301391733,0.00137397,66792.0,66789.0,1.42907267]
[1722301392229,0.04630738,66793.0,66789.0,1.42887706]
[1722301392649,0.04630738,66792.0,66789.0,1.42887706]
[1722301393082,0.00137397,66791.0,66789.0,1.42887706]
[1722301393282,0.03191946,66790.0,66789.0,1.41887706]
[1722301393482,0.03191946,66790.0,66789.0,1.42887706]
[1722301393733,0.00844,66790.0,66789.0,1.42887706]
[1722301394051,0.00844,66790.0,66789.0,1.41487706]
[1722301394523,0.00844,66790.0,66789.0,1.4405735]
[1722301395377,0.00844,66790.0,66789.0,1.4411349]
[1722301395544,0.00844,66790.0,66789.0,1.4271349]
[1722301396515,0.00844,66790.0,66789.0,1.4171349]
[1722301396748,0.00844,66790.0,66789.0,1.4411349]
[1722301396952,0.03191919,66790.0,66789.0,1.4411349]
[1722301398015,0.00844,66790.0,66789.0,1.4411349]
[1722301398440,0.00844,66790.0,66789.0,1.36934948]
[1722301398584,0.00844,66790.0,66789.0,1.44112759]
[1722301398985,0.00844,66790.0,66789.0,1.43112759]
[1722301399210,0.00844,66790.0,66789.0,1.44112759]
[1722301401472,0.0316945,66790.0,66789.0,1.44112759]
[1722301401588,0.00821541,66790.0,66789.0,1.44112759]
[1722301403279,0.00821541,66790.0,66789.0,1.57482759]
[1722301403473,0.00821541,66790.0,66789.0,1.58482759]
[1722301404555,0.00821541,66790.0,66789.0,1.57482759]
[1722301404705,0.00821541,66790.0,66789.0,1.51304948]
[1722301404910,0.03169447,66790.0,66789.0,1.58493841]
[1722301405426,0.00958938,66790.0,66789.0,1.58493841]
[1722301405633,0.00821541,66790.0,66789.0,1.58493841]
[1722301406799,0.00821541,66790.0,66789.0,1.57093841]
[1722301407161,0.00821541,66790.0,66789.0,1.59513841]
[1722301407734,0.00821541,66790.0,66789.0,1.51253841]
[1722301407928,0.00821541,66790.0,66789.0,1.44064948]
[1722301408154,0.00821541,66790.0,66789.0,1.5265639]
[1722301408350,0.00821541,66790.0,66789.0,1.5125639]
[1722301408606,0.03169447,66790.0,66789.0,1.5125639]
[1722301408762,0.03169447,66790.0,66789.0,1.5265639]
[1722301409674,0.03169447,66790.0,66789.0,1.5566339]
[1722301409675,0.00821541,66790.0,66789.0,1.5566339]
[1722301411217,0.00821541,66790.0,66789.0,1.555974]
[1722301411818,0.00821541,66790.0,66789.0,1.531974]
[1722301412019,0.00821541,66790.0,66789.0,1.555974]
[1722301412424,0.00821541,66790.0,66789.0,2.030334]
[1722301412733,0.00821541,66790.0,66789.0,2.054334]
[1722301413783,0.00821541,66790.0,66789.0,2.044334]
[1722301413982,0.00821541,66790.0,66789.0,1.655974]
[1722301414216,0.00821541,66790.0,66789.0,1.58471948]
[1722301414421,0.00821541,66790.0,66789.0,1.65626162]
[1722301415161,0.00821541,66790.0,66789.0,1.57096162]
[1722301415327,0.00821541,66790.0,66789.0,1.47096162]
[1722301415972,0.03169382,66790.0,66789.0,1.47096162]
[1722301416177,0.00821541,66790.0,66789.0,1.46096162]
[1722301416339,0.00821541,66790.0,66789.0,1.47096162]
[1722301416743,0.00821541,66790.0,66789.0,1.23140162]
[1722301416938,0.20349341,66790.0,66789.0,0.16963304]
[1722301417141,0.20349341,66790.0,66789.0,0.29941304]
[1722301417142,0.17076794,66790.0,66789.0,0.29941304]
[1722301417387,0.08371541,66790.0,66789.0,0.77853304]
[1722301417590,0.08371541,66790.0,66789.0,1.01809304]
[1722301417591,0.17697442,66790.0,66789.0,1.01809304]
[1722301417791,0.10147442,66790.0,66789.0,1.01809304]
[1722301418009,0.19133979,66790.0,66789.0,1.01809304]
[1722301418214,0.06480648,66790.0,66789.0,1.47914384]
[1722301418413,0.06480648,66790.0,66789.0,1.46714384]
[1722301418414,0.00821541,66790.0,66789.0,1.46714384]
[1722301418950,0.03169419,66790.0,66789.0,1.39179668]
[1722301419115,0.03169419,66790.0,66789.0,1.41479668]
[1722301419374,0.03169419,66790.0,66789.0,1.51479668]
[1722301420072,0.03169419,66790.0,66789.0,1.50079668]
[1722301420073,0.00821541,66790.0,66789.0,1.50079668]
[1722301420228,0.00821541,66790.0,66789.0,1.47779668]
[1722301420437,0.00821541,66790.0,66789.0,1.40655304]
[1722301420650,0.00821541,66790.0,66789.0,1.41517562]
[1722301420866,0.00821541,66790.0,66789.0,1.17561562]
[1722301421054,0.06614914,66790.0,66789.0,1.16561562]
[1722301421329,0.02124403,66790.0,66789.0,1.18961562]
[1722301421506,0.02124403,66790.0,66789.0,1.16561562]
[1722301421507,0.00958938,66790.0,66789.0,1.16561562]
[1722301421708,0.00821541,66790.0,66789.0,1.18961562]
[1722301421994,0.00958938,66790.0,66789.0,1.18961562]
[1722301422198,0.00958938,66790.0,66789.0,1.42917562]
[1722301422399,0.00821541,66790.0,66789.0,1.42917562]
[1722301422630,0.00821541,66790.0,66789.0,1.55647562]
[1722301423046,0.00821541,66790.0,66789.0,1.57047562]
[1722301423175,0.00821541,66790.0,66789.0,1.56047562]
[1722301423368,0.03169415,66790.0,66789.0,1.56047562]
[1722301423565,0.03169415,66790.0,66789.0,1.49895304]
[1722301423765,0.03169415,66790.0,66789.0,1.57073965]
[1722301423987,0.03169415,66790.0,66789.0,1.66073965]
[1722301424194,0.03169415,66790.0,66789.0,1.62195304]
[1722301424390,0.03169415,66790.0,66789.0,1.69376902]
[1722301425005,0.03169415,66790.0,66789.0,1.68376902]
[1722301425209,0.00821541,66790.0,66789.0,1.68376902]
[1722301425422,0.00821541,66790.0,66789.0,1.70576902]
[1722301425684,0.00821541,66790.0,66789.0,1.68380146]
[1722301425882,0.00821541,66790.0,66789.0,1.69380146]
[1722301426088,0.00821541,66790.0,66789.0,1.76564988]
[1722301426289,0.00821541,66790.0,66789.0,1.77564988]
[1722301426595,0.00821541,66790.0,66789.0,1.74164988]
[1722301426801,0.00821541,66790.0,66789.0,1.98120988]
[1722301427028,0.00821541,66790.0,66789.0,1.77172423]
[1722301427913,0.00821541,66790.0,66789.0,1.37786423]
[1722301428113,0.00821541,66790.0,66789.0,1.33779423]
[1722301428358,0.00821541,66790.0,66789.0,1.34779423]
[1722301428579,0.06478718,66790.0,66789.0,1.34779423]
[1722301428914,0.01987355,66790.0,66789.0,1.34779423]
[1722301429115,0.02124752,66790.0,66789.0,1.34779423]
[1722301429242,0.02124752,66790.0,66789.0,1.36179423]
[1722301429447,0.02124752,66790.0,66789.0,1.28994581]
[1722301429650,0.02124752,66790.0,66789.0,0.37126581]
[1722301429858,0.09674752,66790.0,66789.0,0.17963304]
[1722301430075,0.18430701,66790.0,66789.0,0.17963304]
[1722301430279,0.31904058,66790.0,66789.0,0.17963304]
[1722301430632,0.32037903,66790.0,66789.0,0.17963304]
[1722301430811,0.32037903,66790.0,66789.0,0.17083476]
[1722301430812,0.31900506,66790.0,66789.0,0.17083476]
[1722301430968,0.46493733,66790.0,66789.0,0.17083476]
[1722301431171,0.34515933,66790.0,66789.0,0.17083476]
[1722301431380,0.18430701,66790.0,66789.0,0.18083476]
[1722301431584,0.18568098,66790.0,66789.0,0.17083476]
[1722301431780,0.18568098,66790.0,66789.0,0.18083476]
[1722301431781,0.36972215,66790.0,66789.0,0.18083476]
[1722301432014,0.20916334,66790.0,66789.0,0.18100156]
[1722301432272,0.50370502,66790.0,66789.0,0.18100156]
[1722301432438,0.21944861,66790.0,66789.0,0.18100156]
[1722301432845,0.19596625,66790.0,66789.0,0.18100156]
[1722301433203,0.09537465,66790.0,66789.0,0.18169593]
[1722301433403,0.09537465,66790.0,66789.0,0.16769593]
[1722301433589,0.18446179,66790.0,66789.0,0.15769593]
[1722301433789,0.18446179,66790.0,66789.0,0.17169593]
[1722301434147,0.18308782,66790.0,66789.0,0.17169593]
[1722301434344,0.30286582,66790.0,66789.0,0.15819632]
[1722301434583,0.18308782,66790.0,66789.0,0.28897632]
[1722301434789,0.19474441,66790.0,66789.0,0.28897632]
[1722301434945,0.19474441,66790.0,66789.0,0.16919632]
[1722301434946,0.18308782,66790.0,66789.0,0.16919632]
[1722301435149,0.18308782,66790.0,66789.0,0.17119632]
[1722301435355,0.19474514,66790.0,66789.0,0.17143161]
[1722301435573,0.19474514,66790.0,66789.0,0.16843161]
[1722301436070,0.19474514,66790.0,66789.0,0.15843161]
[1722301436617,0.19474514,66790.0,66789.0,0.28913548]
[1722301436618,0.17288116,66790.0,66789.0,0.28913548]
[1722301436820,0.17288116,66790.0,66789.0,0.76825548]
[1722301436821,0.00821541,66790.0,66789.0,0.76825548]
[1722301436992,0.00821541,66790.0,66789.0,1.10781548]
[1722301436993,0.00958938,66790.0,66789.0,1.10781548]
[1722301437200,0.00958938,66790.0,66789.0,1.09881548]
[1722301437406,0.031695,66790.0,66789.0,1.09881548]
[1722301437545,0.031695,66790.0,66789.0,1.10881548]
[1722301437925,0.00821541,66790.0,66789.0,1.10781548]
[1722301438200,0.00821541,66790.0,66789.0,1.12081548]
[1722301438606,0.00821541,66790.0,66789.0,1.10781548]
[1722301438751,0.00821541,66790.0,66789.0,1.10938166]
[1722301438946,0.00821541,66790.0,66789.0,1.11938166]
[1722301439751,0.00821541,66790.0,66789.0,1.10938166]
[1722301440079,0.00821541,66790.0,66789.0,1.12338166]
[1722301440524,0.03169453,66790.0,66789.0,1.12338166]
[1722301440670,0.03169453,66790.0,66789.0,1.1249459]
[1722301441306,0.03169453,66790.0,66789.0,1.1109459]
[1722301441516,0.00821541,66790.0,66789.0,1.1209459]
[1722301441713,0.00821541,66790.0,66789.0,1.1349459]
[1722301441865,0.00821541,66790.0,66789.0,0.88570148]
[1722301442069,0.06201541,66790.0,66789.0,0.7841353]
[1722301442325,0.06201541,66790.0,66789.0,0.3050153]
[1722301442326,0.07505189,66790.0,66789.0,0.3050153]
[1722301442526,0.07505189,66790.0,66789.0,0.5305753]
[1722301442527,0.1647739,66790.0,66789.0,0.5305753]
[1722301442702,0.07505189,66790.0,66789.0,0.3050153]
[1722301442908,0.07505189,66790.0,66789.0,0.5445753]
[1722301443111,0.07505189,66790.0,66789.0,0.53132764]
[1722301443332,0.25441286,66790.0,66789.0,0.54532764]
[1722301443533,0.1633032,66790.0,66789.0,0.54532764]
[1722301443732,0.07505189,66790.0,66789.0,0.54532764]
[1722301444056,0.14234773,66790.0,66789.0,0.54532764]
[1722301444357,0.07505189,66790.0,66789.0,0.78488764]
[1722301444657,0.08854781,66790.0,66789.0,0.77088764]
[1722301444855,0.08854781,66790.0,66789.0,0.29176764]
[1722301444856,0.18632328,66790.0,66789.0,0.29176764]
[1722301445089,0.18632328,66790.0,66789.0,0.28776764]
[1722301445090,0.27410926,66790.0,66789.0,0.28776764]
[1722301445293,0.1987621,66790.0,66789.0,0.28776764]
[1722301445437,0.1987621,66790.0,66789.0,0.52732764]
[1722301445673,0.1987621,66790.0,66789.0,0.53732764]
[1722301445674,0.10903787,66790.0,66789.0,0.53732764]
[1722301445844,0.11041184,66790.0,66789.0,0.53732764]
[1722301446015,0.13389329,66790.0,66789.0,0.53824064]
[1722301446209,0.0885406,66790.0,66789.0,0.53824064]
[1722301446764,0.02125189,66790.0,66789.0,0.53824064]
[1722301446969,0.11084409,66790.0,66789.0,0.53824064]
[1722301447374,0.20056832,66790.0,66789.0,0.53824064]
[1722301447576,0.01987792,66790.0,66789.0,0.16890064]
[1722301447734,0.01987792,66790.0,66789.0,0.29268064]
[1722301447735,0.19845485,66790.0,66789.0,0.29268064]
[1722301448100,0.19845485,66790.0,66789.0,0.17290064]
[1722301448101,0.19937077,66790.0,66789.0,0.17290064]
[1722301448427,0.1096727,66790.0,66789.0,0.17290064]
[1722301448674,0.11104667,66790.0,66789.0,0.17290064]
[1722301448876,0.11104667,66790.0,66789.0,0.53224064]
[1722301449032,0.13452789,66790.0,66789.0,0.53224064]
[1722301449234,0.22423708,66790.0,66789.0,0.29268064]
[1722301449470,0.19937688,66790.0,66789.0,0.29868064]
[1722301449838,0.19937688,66790.0,66789.0,0.29268064]
[1722301449839,0.1096727,66790.0,66789.0,0.29268064]
[1722301450041,0.11104667,66790.0,66789.0,0.29568064]
[1722301450221,0.11104667,66790.0,66789.0,0.53224064]
[1722301450222,0.08852775,66790.0,66789.0,0.53224064]
[1722301450581,0.01987792,66790.0,66789.0,0.53824064]
[1722301450806,0.02125189,66790.0,66789.0,0.29868064]
[1722301451101,0.02125189,66790.0,66789.0,0.28868064]
[1722301451414,0.01987792,66790.0,66789.0,0.29868064]
[1722301451644,0.19753677,66790.0,66789.0,0.53824064]
[1722301451839,0.19753677,66790.0,66789.0,0.77780064]
[1722301451840,0.08851921,66790.0,66789.0,0.77780064]
[1722301452177,0.01987795,66790.0,66789.0,0.76780064]
[1722301452438,0.01987795,66790.0,66789.0,0.77180064]
[1722301452636,0.08957873,66790.0,66789.0,0.53424064]
[1722301453138,0.04335895,66790.0,66789.0,0.53424064]
[1722301453338,0.04473292,66790.0,66789.0,0.53424064]
[1722301453534,0.04473292,66790.0,66789.0,0.53224064]
[1722301453752,0.04473292,66790.0,66789.0,0.77180064]
[1722301453941,0.04473292,66790.0,66789.0,0.53924064]
[1722301453942,0.02125192,66790.0,66789.0,0.53924064]
[1722301454143,0.00958938,66790.0,66789.0,0.83540064]
[1722301454348,0.00821541,66790.0,66789.0,0.83540064]
[1722301454524,0.00821541,66790.0,66789.0,1.07496064]
[1722301454727,0.00821541,66790.0,66789.0,1.15246064]
[1722301455503,0.00821541,66790.0,66789.0,1.16146064]
[1722301456091,0.00821541,66790.0,66789.0,1.32397508]
[1722301456205,0.00821541,66790.0,66789.0,1.49202064]
[1722301456564,0.00821541,66790.0,66789.0,1.58312618]
[1722301456969,0.00821541,66790.0,66789.0,1.59312618]
[1722301457187,0.00821541,66790.0,66789.0,1.60712618]
[1722301457395,0.00821541,66790.0,66789.0,1.60710998]
[1722301457753,0.00821541,66790.0,66789.0,1.59710998]
[1722301458292,0.00821541,66790.0,66789.0,1.60710998]
[1722301459103,0.00821541,66790.0,66789.0,1.59710998]
[1722301459631,0.00821541,66790.0,66789.0,1.59310998]
[1722301459830,0.00821541,66790.0,66789.0,1.58310998]
[1722301460410,0.00821541,66790.0,66789.0,1.51209064]
[1722301460617,0.00821541,66790.0,66789.0,1.58335562]
[1722301460813,0.03169389,66790.0,66789.0,1.58335562]
[1722301460977,0.00821541,66790.0,66789.0,1.58335562]
[1722301461179,0.00821541,66790.0,66789.0,1.59335562]
[1722301461460,0.00821541,66790.0,66789.0,1.58335562]
[1722301461461,0.00814055,66790.0,66789.0,1.58335562]
[1722301463696,0.00796035,66790.0,66789.0,1.58326005]
[1722301463894,0.00796035,66790.0,66789.0,1.59326005]
[1722301464118,0.00796035,66790.0,66789.0,1.31363005]
[1722301464435,0.03143882,66790.0,66789.0,1.31363005]
[1722301464667,0.03143882,66790.0,66789.0,1.55319005]
[1722301464870,0.00796035,66790.0,66789.0,1.55319005]
[1722301465247,0.00796035,66790.0,66789.0,1.56719005]
[1722301465454,0.00796035,66790.0,66789.0,1.55319005]
[1722301465854,0.00796035,66790.0,66789.0,1.56719005]
[1722301466056,0.00796035,66790.0,66789.0,1.57719005]
[1722301466261,0.03143882,66790.0,66789.0,1.55319005]
[1722301466460,0.03143882,66790.0,66789.0,1.56719005]
[1722301466786,0.03143882,66790.0,66789.0,1.48202064]
[1722301466986,0.03143882,66790.0,66789.0,1.563384]
[1722301467286,0.03143882,66790.0,66789.0,1.577384]
[1722301468278,0.00796035,66790.0,66789.0,1.577384]
[1722301469963,0.00796035,66790.0,66789.0,1.50602064]
[1722301470163,0.00796035,66790.0,66789.0,1.57765128]
[1722301470727,0.00796035,66790.0,66789.0,1.56365128]
[1722301471500,0.03143888,66790.0,66789.0,1.56365128]
[1722301471855,0.00796035,66790.0,66789.0,1.56365128]
[1722301473184,0.00796035,66790.0,66789.0,1.60739064]
[1722301473374,0.00796035,66790.0,66789.0,1.67914608]
[1722301474530,0.00796035,66790.0,66789.0,1.56377608]
[1722301474835,0.00796035,66790.0,66789.0,1.64907608]
[1722301475046,0.00796035,66790.0,66789.0,1.65907608]
[1722301475330,0.00796035,66790.0,66789.0,1.66307608]
[1722301475331,0.03143983,66790.0,66789.0,1.66307608]
[1722301475476,0.03143983,66790.0,66789.0,1.65307608]
[1722301475877,0.03143983,66790.0,66789.0,1.66307608]
[1722301476486,0.03143983,66790.0,66789.0,1.66321949]
[1722301477144,0.03143983,66790.0,66789.0,1.64921949]
[1722301477325,0.03143983,66790.0,66789.0,1.66321949]
[1722301477754,0.03143983,66790.0,66789.0,1.64921949]
[1722301478133,0.03143983,66790.0,66789.0,1.66321949]
[1722301479119,0.03143983,66790.0,66789.0,1.67521949]
[1722301479596,0.03143983,66790.0,66789.0,1.57732064]
[1722301479779,0.03143983,66790.0,66789.0,1.66278016]
[1722301480181,0.03143983,66790.0,66789.0,1.69279016]
[1722301480593,0.03143983,66790.0,66789.0,1.67879016]
[1722301480942,0.03143983,66790.0,66789.0,1.69279016]
[1722301481140,0.03143983,66790.0,66789.0,1.67879016]
[1722301481600,0.03143983,66790.0,66789.0,1.71579016]
[1722301482584,0.03143983,66790.0,66789.0,1.69279016]
[1722301482805,0.03143983,66790.0,66789.0,1.21308123]
[1722301482973,0.03143983,66790.0,66789.0,1.31238123]
[1722301483555,0.03143983,66790.0,66789.0,1.28838123]
[1722301483785,0.03143983,66790.0,66789.0,1.31238123]
[1722301484161,0.04310141,66790.0,66789.0,1.29838123]
[1722301484363,0.01962193,66790.0,66789.0,1.31238123]
[1722301485787,0.00796035,66790.0,66789.0,1.24067064]
[1722301486178,0.00796035,66790.0,66789.0,1.30301724]
[1722301486421,0.00796035,66790.0,66789.0,1.31301724]
[1722301487133,0.0196223,66790.0,66789.0,1.31301724]
[1722301487853,0.03143942,66790.0,66789.0,1.31301724]
[1722301487977,0.04310125,66790.0,66789.0,1.31301724]
[1722301488180,0.03143942,66790.0,66789.0,1.31301724]
[1722301488408,0.03143942,66790.0,66789.0,1.30301724]
[1722301488608,0.0431014,66790.0,66789.0,1.31301724]
[1722301489144,0.0431014,66790.0,66789.0,1.31280584]
[1722301489339,0.0431014,66790.0,66789.0,1.30280584]
[1722301489775,0.0431014,66790.0,66789.0,1.31280584]
[1722301490324,0.03143942,66790.0,66789.0,1.31280584]
[1722301490526,0.03143942,66790.0,66789.0,1.24067064]
[1722301490939,0.00796035,66790.0,66789.0,1.24067064]
[1722301491144,0.06176035,66790.0,66789.0,0.81581064]
[1722301491456,0.12906436,66790.0,66789.0,0.78580064]
[1722301491660,0.08346035,66790.0,66789.0,0.78580064]
[1722301491854,0.08483432,66790.0,66789.0,0.78580064]
[1722301492055,0.16382279,66790.0,66789.0,0.78580064]
[1722301492280,0.15078498,66790.0,66789.0,0.78580064]
[1722301492444,0.08346035,66790.0,66789.0,0.78580064]
[1722301492639,0.09512344,66790.0,66789.0,0.78580064]
[1722301492843,0.1624534,66790.0,66789.0,0.87110064]
[1722301493064,0.16382737,66790.0,66789.0,0.86110064]
[1722301493265,0.14212737,66790.0,66789.0,0.86110064]
[1722301493473,0.01962344,66790.0,66789.0,0.86110064]
[1722301493680,0.02099741,66790.0,66789.0,0.87110064]
[1722301493875,0.06588284,66790.0,66789.0,0.87110064]
[1722301494073,0.0196231,66790.0,66789.0,0.87110064]
[1722301494296,0.02099707,66790.0,66789.0,0.86110064]
[1722301494506,0.06450933,66790.0,66789.0,1.11066064]
[1722301494823,0.0196231,66790.0,66789.0,1.11066064]
[1722301495115,0.0658833,66790.0,66789.0,1.11066064]
[1722301495321,0.06450933,66790.0,66789.0,1.11066064]
[1722301495532,0.0196231,66790.0,66789.0,1.11066064]
[1722301495733,0.06451971,66790.0,66789.0,1.11066064]
[1722301496082,0.06589368,66790.0,66789.0,1.11066064]
[1722301496282,0.02099707,66790.0,66789.0,1.11066064]
[1722301496741,0.06452401,66790.0,66789.0,1.11066064]
[1722301497011,0.0196231,66790.0,66789.0,1.11066064]
[1722301497211,0.02099707,66790.0,66789.0,1.11066064]
[1722301498815,0.08939011,66790.0,66789.0,1.11066064]
[1722301498937,0.08836675,66790.0,66789.0,1.10066064]
[1722301499140,0.08699278,66790.0,66789.0,1.11066064]
[1722301499360,0.06453571,66790.0,66789.0,1.11066064]
[1722301499714,0.06590968,66790.0,66789.0,1.11066064]
[1722301499903,0.02099707,66790.0,66789.0,0.87110064]
[1722301500111,0.0196231,66790.0,66789.0,0.87110064]
[1722301500415,0.02099707,66790.0,66789.0,1.11066064]
[1722301501605,0.02099615,66790.0,66789.0,1.17706064]
[1722301501809,0.00796035,66790.0,66789.0,1.17706064]
[1722301502006,0.03144062,66790.0,66789.0,1.17706064]
[1722301502322,0.03144062,66790.0,66789.0,1.23980394]
[1722301503052,0.00796035,66790.0,66789.0,1.25380394]
[1722301503598,0.06453771,66790.0,66789.0,1.25380394]
[1722301503964,0.01962205,66790.0,66789.0,1.19106064]
[1722301504204,0.00796035,66790.0,66789.0,1.19106064]
[1722301504378,0.02099614,66790.0,66789.0,1.19106064]
[1722301504580,0.02099614,66790.0,66789.0,1.15306064]